{"text_format":"1","workbook":"xlsx","n_sheets":11,"sheets":["Positions","Calculs Géo vers UTM","Fonction CapUTM","Fonction Distance UTM","Distance C&W","Distance France Telecom","Distance Andoyer","Angle Sodano","Orthodromique Jordan","Angles Jordan","Angle France-Telecom"],"not_rendered":{"charts":0,"images":0,"macros":1,"external_links":0,"defined_names":4,"comments":0,"pivot_tables":0},"unopened":[{"sheet":"Calculs Géo vers UTM","index":1,"reason":"part_missing"},{"sheet":"Fonction CapUTM","index":2,"reason":"part_missing"},{"sheet":"Fonction Distance UTM","index":3,"reason":"part_missing"},{"sheet":"Distance C&W","index":4,"reason":"part_missing"},{"sheet":"Distance France Telecom","index":5,"reason":"part_missing"},{"sheet":"Distance Andoyer","index":6,"reason":"part_missing"},{"sheet":"Angle Sodano","index":7,"reason":"part_missing"},{"sheet":"Orthodromique Jordan","index":8,"reason":"part_missing"},{"sheet":"Angles Jordan","index":9,"reason":"part_missing"},{"sheet":"Angle France-Telecom","index":10,"reason":"part_missing"}],"bounds":{"document_bytes":16777216,"sheet_cells":100000,"rows_first":2000,"rows_last":500,"rows_between":2000,"halvings":0,"cell_chars":16384,"cell_head_chars":4096},"cells_cut":0,"cells_raw":0,"read":"whole","date_system":"1900"}

{"sheet":"Positions","index":0,"n_rows":20,"n_cols":16,"rows_kept":20,"cut":false,"hidden":false,"merged":[[1,2,1,16],[18,14,18,16],[19,14,19,16],[3,12,3,13],[6,12,6,13],[4,2,4,3],[17,14,17,16],[12,12,12,13],[13,12,13,13],[16,14,16,16],[9,12,9,13]]}
[]
[null,null,"COMPARAISON DE CALCULS DE DISTANCES"]
[]
[null,null,null,null,null,null,"COORDONNEES DE LA LIGNE:",{"$f":"(D6)&\"- \"&(D7)","v":"A- B"},null,null,null,null,"Caps calcul Sodano"]
[null,null,null,null,"Latitude",null,null,"Longitude",null,null,null,null,{"$f":"\"CAP AU POINT \" &D6 & \" :\"","v":"CAP AU POINT A :"},{"$f":"AngleS1(E6,F6,H6,I6,E7,F7,H7,I7)","v":303.2462128569141}]
[null,null,"POINT:","A",43,6,{"$f":"IF(OR(E6<0,AND(E6=0,F6<0)),\"S\",\"N\")","v":"N"},3,5,{"$f":"IF(OR(H6<0,AND(H6=0,I6<0)),\"W\",\"E\")","v":"E"},null,null,{"$f":"\"CAP AU POINT \" &D7 & \" :\"","v":"CAP AU POINT B :"},{"$f":"AngleS2(E6,F6,H6,I6,E7,F7,H7,I7)","v":241.38572707001634}]
[null,null,"POINT:","B",45,56,{"$f":"IF(OR(E7<0,AND(E7=0,F7<0)),\"S\",\"N\")","v":"N"},-78,2,{"$f":"IF(OR(H7<0,AND(H7=0,I7<0)),\"W\",\"E\")","v":"W"},null,null,"Caps calcul Jordan"]
[null,null,null,null,{"$f":"IF(E6=0,F6/60,IF(E6>0,E6+F6/60,E6-F6/60))","v":43.1},null,null,{"$f":"IF(H6=0,I6/60,IF(H6>0,H6+I6/60,H6-I6/60))","v":3.0833333333333335},null,null,null,null,{"$f":"\"CAP AU POINT \" &D6 & \" :\"","v":"CAP AU POINT A :"},{"$f":"Angle1(E6,F6,H6,I6,E7,F7,H7,I7)","v":303.29323010698425}]
[null,null,null,null,{"$f":"IF(E7=0,F7/60,IF(E7>0,E7+F7/60,E7-F7/60))","v":45.93333333333333},null,null,{"$f":"IF(H7=0,I7/60,IF(H7>0,H7+I7/60,H7-I7/60))","v":-78.033333333333331},null,null,null,null,{"$f":"\"CAP AU POINT \" &D7 & \" :\"","v":"CAP AU POINT B :"},{"$f":"Angle2(E6,F6,H6,I6,E7,F7,H7,I7)","v":241.32924575046698}]
[null,null,null,null,null,null,null,null,null,null,null,null,"Caps calcul Vincenty"]
[null,null,null,null,null,null,null,null,null,null,null,null,{"$f":"\"CAP AU POINT \" &D9 & \" :\"","v":"CAP AU POINT  :"},{"$f":"VincentyInvFwdAzimuth(E8,H8,E9,H9)","v":303.29226982997369}]
[null,null,null,null,null,null,null,null,null,null,null,null,{"$f":"\"CAP AU POINT \" &D10 & \" :\"","v":"CAP AU POINT  :"},{"$f":"VincentyInvRevAzimuth(E8,H8,E9,H9)","v":241.33039900818926}]
[null,null,null,null,null,null,null,null,null,null,null,null,"Cap Loxodromique"]
[null,null,null,null,null,null,null,null,null,null,null,null,{"$f":"Cap(E6,F6,H6,I6,E7,F7,H7,I7)","v":272.7957116717385}]
[]
[null,null,null,null,null,null,null,null,null,null,null,null,"Longeur de la ligne:","Formule",null,"Ecart / Loxodromique"]
[null,null,null,null,null,null,null,null,null,null,null,null,{"$f":"Distance(E6,F6,H6,I6,E7,F7,H7,I7)*1000","v":6455055.5241521699},"Loxodromique",0]
[null,null,null,null,null,null,null,null,null,null,null,null,{"$f":"Andoyer(E6,F6,H6,I6,E7,F7,H7,I7)","v":6165237.6613514461},"Andoyer",{"$f":"-(M17-M18)","v":-289817.86280072387}]
[null,null,null,null,null,null,null,null,null,null,null,null,{"$f":"Jordan(E6,F6,H6,I6,E7,F7,H7,I7)","v":6165304.7295396421},"Jordan",{"$f":"-(M17-M19)","v":-289750.79461252782}]
[null,null,null,null,null,null,null,null,null,null,null,null,{"$f":"VincentyInvDistance(E8,H8,E9,H9)","v":6165245.0894813025},"Vincenty",{"$f":"-(M17-M20)","v":-289810.4346708674}]